fUST/lending_fUST_20251126
["ID","MTS","AMOUNT","RATE_DAILY","PERIOD"]
[394900481,1764099057917,-500.0,0.00011232,2]
[394900482,1764099057927,-2792.1,0.00011232,2]
[394900483,1764099057936,-3135.39,0.00011232,2]
[394900484,1764099057946,-1332.61,0.00011232,2]
[394900485,1764099057955,-2197.66,0.00011232,2]
[394900486,1764099057966,-500.0,0.00011232,2]
[394900487,1764099057975,-659.4,0.00011232,2]
[394900488,1764099057984,-1012.98,0.00011232,2]
[394900489,1764099057994,-593.09249206,0.00011232,2]
[394900490,1764099058006,-1202.03,0.00011232,2]
[394900491,1764099058016,-853.22,0.00011232,2]
[394900492,1764099058025,-1513.66,0.00011232,2]
[394900493,1764099058034,-500.0,0.00011232,2]
[394900494,1764099058043,-529.49,0.00011232,2]
[394900495,1764099058052,-501.36,0.00011232,2]
[394900496,1764099058062,-500.0,0.00011232,2]
[394900497,1764099058071,-395.03397606,0.00011232,2]
[394900498,1764099058081,-500.0,0.00011232,2]
[394900499,1764099058090,-500.0,0.00011232,2]
[394900500,1764099058103,-190.95495296,0.00011232,2]
[394900501,1764099058115,-3068.81,0.00011232,2]
[394900502,1764099058125,-500.0,0.00011232,2]
[394900503,1764099058135,-1124.66,0.00011232,2]
[394900504,1764099058143,-500.0,0.00011232,2]
[394900505,1764099058154,-1462.56,0.00011232,2]
[394900506,1764099058163,-500.0,0.00011232,2]
[394900507,1764099058173,-441.06919112,0.00011232,2]
[394900508,1764099058182,-500.0,0.00011232,2]
[394900509,1764099058193,-285.38185297,0.00011232,2]
[394900510,1764099058203,-2904.67,0.00011232,2]
[394900511,1764099058213,-5465.24,0.00011232,2]
[394900512,1764099058223,-517.38,0.00011232,2]
[394900513,1764099058233,-328.29780167,0.00011232,2]
[394900514,1764099058242,-500.0,0.00011232,2]
[394900515,1764099058251,-470.05101346,0.00011232,2]
[394900516,1764099058260,-595.9,0.00011232,2]
[394900517,1764099058269,-500.0,0.00011232,2]
[394900518,1764099058278,-500.0,0.00011232,2]
[394900519,1764099058287,-507.05,0.00011232,2]
[394900520,1764099058296,-1034.01,0.00011232,2]
[394900521,1764099058306,-2831.69,0.00011232,2]
[394900522,1764099058315,-500.0,0.00011232,2]
[394900523,1764099058324,-500.0,0.00011232,2]
[394900524,1764099058333,-434.86587542,0.00011232,2]
[394900525,1764099058342,-753.73,0.00011232,2]
[394900526,1764099058351,-500.0,0.00011232,2]
[394900527,1764099058360,-500.0,0.00011232,2]
[394900528,1764099058370,-500.0,0.00011232,2]
[394900529,1764099058379,-500.0,0.00011232,2]
[394900530,1764099058387,-500.0,0.00011232,2]
[394900531,1764099058396,-640.24,0.00011232,2]
[394900532,1764099058406,-528.7,0.00011232,2]
[394900533,1764099058415,-500.0,0.00011232,2]
[394900534,1764099058424,-13460.7,0.00011232,2]
[394900535,1764099058433,-500.0,0.00011232,2]
[394900536,1764099058441,-1389.23,0.00011232,2]
[394900537,1764099058451,-500.0,0.00011232,2]
[394900538,1764099058460,-500.0,0.00011232,2]
[394900539,1764099058474,-500.0,0.00011232,2]
[394900540,1764099058483,-500.0,0.00011232,2]
[394900541,1764099058492,-500.0,0.00011232,2]
[394900542,1764099058501,-3213.91,0.00011232,2]
[394900543,1764099058511,-592.53,0.00011232,2]
[394900544,1764099058520,-1263.83,0.00011232,2]
[394900545,1764099058530,-500.0,0.00011232,2]
[394900546,1764099058540,-3463.96,0.00011232,2]
[394900547,1764099058549,-500.0,0.00011232,2]
[394900548,1764099058558,-500.0,0.00011232,2]
[394900549,1764099058567,-500.0,0.00011232,2]
[394900550,1764099058576,-2311.99,0.00011232,2]
[394900551,1764099058695,-500.0,0.00011232,2]
[394900552,1764099058724,-724.7,0.00011232,2]
[394900553,1764099058734,-500.0,0.00011232,2]
[394900554,1764099058743,-500.0,0.00011232,2]
[394900555,1764099058752,-500.0,0.00011232,2]
[394900556,1764099058761,-1300.95,0.00011232,2]
[394900557,1764099058771,-500.0,0.00011232,2]
[394900558,1764099058780,-1428.46,0.00011232,2]
[394900559,1764099058790,-500.0,0.00011273,2]
[394900560,1764099058799,-500.0,0.00011273,2]
[394900561,1764099058809,-292.06825785,0.00011273,2]
[394900562,1764099058819,-314.81678627,0.00011273,2]
[394900563,1764099058828,-500.0,0.00011273,2]
[394900564,1764099058837,-500.0,0.00011273,2]
[394900565,1764099058847,-500.0,0.00011273,2]
[394900566,1764099058856,-500.0,0.00011273,2]
[394900567,1764099058865,-526.82463184,0.00011379,2]
[394900568,1764099058874,-872.96869792,0.00011435,2]
[394900569,1764099058883,-235.98053813,0.00011435,2]
[394900570,1764099058892,-578.38303234,0.00011445,2]
[394900571,1764099058901,-157.98662547,0.00011459,3]
[394900572,1764099058910,-282.07771417,0.00011459,3]
[394900573,1764099058920,-500.0,0.00011506,2]
[394900574,1764099058929,-500.0,0.00011506,2]
[394900575,1764099058938,-230.83942684,0.00011506,2]
[394900576,1764099058947,-500.0,0.00011506,2]
[394900577,1764099058956,-500.0,0.00011506,2]
[394900578,1764099058966,-500.0,0.00011506,2]
[394900579,1764099058975,-500.0,0.00011506,2]
[394900580,1764099058984,-210.18899004,0.00011506,2]
[394900581,1764099058993,-500.0,0.00011506,2]
[394900582,1764099059002,-791.8,0.00011506,2]
[394900583,1764099059011,-500.0,0.00011506,2]
[394900584,1764099059021,-500.0,0.00011506,2]
[394900585,1764099059030,-500.0,0.00011506,2]
[394900586,1764099059040,-500.0,0.00011506,2]
[394900587,1764099059049,-476.17749667,0.00011506,2]
[394900588,1764099059059,-956.18,0.00011506,2]
[394900589,1764099059068,-500.0,0.00011506,2]
[394900590,1764099059078,-500.0,0.00011506,2]
[394900591,1764099059087,-500.0,0.00011506,2]
[394900592,1764099059096,-500.0,0.00011506,2]
[394900593,1764099059105,-500.0,0.00011506,2]
[394900594,1764099059118,-500.0,0.00011506,2]
[394900595,1764099059127,-500.0,0.00011506,2]
[394900596,1764099059137,-511.78295979,0.00011506,2]
[394900597,1764099059146,-505.95624398,0.00011506,2]
[394900598,1764099059156,-500.0,0.00011506,2]
[394900599,1764099059165,-500.0,0.00011506,2]
[394900600,1764099059175,-500.0,0.00011506,2]
[394900601,1764099059189,-1109.54,0.00011506,2]
[394900602,1764099059199,-500.0,0.00011506,2]
[394900603,1764099059208,-625.7,0.00011506,2]
[394900604,1764099059219,-500.0,0.00011506,2]
[394900605,1764099059228,-500.0,0.00011506,2]
[394900606,1764099059239,-500.0,0.00011506,2]
[394900607,1764099059249,-519.8,0.00011506,2]
[394900608,1764099059259,-755.22,0.00011506,2]
[394900609,1764099059268,-500.0,0.00011506,2]
[394900610,1764099059278,-500.0,0.00011506,2]
[394900611,1764099059288,-500.0,0.00011506,2]
[394900612,1764099059297,-551.63,0.00011506,2]
[394900613,1764099059307,-500.0,0.00011506,2]
[394900614,1764099059317,-879.57,0.00011506,2]
[394900615,1764099059327,-500.0,0.00011506,2]
[394900616,1764099059335,-500.0,0.00011506,2]
[394900617,1764099059344,-500.0,0.00011506,2]
[394900618,1764099059353,-807.9,0.00011506,2]
[394900619,1764099059362,-500.0,0.00011506,2]
[394900620,1764099059372,-1197.75,0.00011506,2]
[394900621,1764099059381,-500.0,0.00011506,2]
[394900622,1764099059391,-500.0,0.00011506,2]
[394900623,1764099059400,-504.42912775,0.00011506,2]
[394900624,1764099059410,-500.0,0.00011506,2]
[394900625,1764099059420,-1399.99,0.00011506,2]
[394900626,1764099059430,-500.0,0.00011506,2]
[394900627,1764099059440,-500.0,0.00011506,2]
[394900628,1764099059449,-500.0,0.00011506,2]
[394900629,1764099059458,-514.12,0.00011506,2]
[394900630,1764099059469,-516.17,0.00011506,2]
[394900631,1764099059479,-500.0,0.00011506,2]
[394900632,1764099059488,-500.0,0.00011506,2]
[394900633,1764099059497,-500.0,0.00011506,2]
[394900634,1764099059507,-569.59,0.00011506,2]
[394900635,1764099059517,-2710.36,0.00011506,2]
[394900636,1764099059526,-635.52,0.00011506,2]
[394900637,1764099059536,-500.0,0.00011506,2]
[394900638,1764099059546,-500.0,0.00011506,2]
[394900639,1764099059555,-1310.34,0.00011506,2]
[394900640,1764099059564,-500.0,0.00011506,2]
[394900641,1764099059573,-717.97,0.00011506,2]
[394900642,1764099059582,-500.0,0.00011506,2]
[394900643,1764099059591,-500.0,0.00011506,2]
[394900644,1764099059601,-627.87,0.00011506,2]
[394900645,1764099059610,-500.0,0.00011506,2]
[394900646,1764099059620,-500.0,0.00011506,2]
[394900647,1764099059630,-500.0,0.00011506,2]
[394900648,1764099059639,-500.0,0.00011506,2]
[394900649,1764099059649,-500.0,0.00011506,2]
[394900650,1764099059659,-641.92,0.00011506,2]
[394900651,1764099059668,-1134.87,0.00011506,2]
[394900652,1764099059678,-500.0,0.00011506,2]
[394900653,1764099059687,-500.0,0.00011506,2]
[394900654,1764099059696,-554.48950078,0.00011506,2]
[394900655,1764099059705,-725.87,0.00011506,2]
[394900656,1764099059716,-500.0,0.00011506,2]
[394900657,1764099059725,-500.0,0.00011506,2]
[394900658,1764099059734,-519.97,0.00011506,2]
[394900659,1764099059744,-500.0,0.00011506,2]
[394900660,1764099059754,-1448.08,0.00011506,2]
[394900661,1764099059763,-500.0,0.00011506,2]
[394900662,1764099059772,-500.0,0.00011506,2]
[394900663,1764099059782,-500.0,0.00011506,2]
[394900664,1764099059791,-500.0,0.00011506,2]
[394900665,1764099059801,-500.0,0.00011506,2]
[394900666,1764099059810,-1001.03,0.00011506,2]
[394900667,1764099059820,-1307.59,0.00011506,2]
[394900668,1764099059830,-500.0,0.00011506,2]
[394900669,1764099059840,-2337.7,0.00011506,2]
[394900670,1764099059850,-500.0,0.00011506,2]
[394900671,1764099059860,-500.0,0.00011506,2]
[394900672,1764099059870,-500.0,0.00011506,2]
[394900673,1764099059880,-500.0,0.00011506,2]
[394900674,1764099059889,-500.0,0.00011506,2]
[394900675,1764099059901,-380.25889749,0.00011506,2]
[394900676,1764099059911,-500.0,0.00011506,2]
[394900677,1764099059920,-500.0,0.00011506,2]
[394900678,1764099059931,-1601.49,0.00011506,2]
[394900679,1764099059941,-500.0,0.00011506,2]
[394900680,1764099059951,-500.0,0.00011506,2]
[394900681,1764099059961,-500.0,0.00011506,2]
[394900682,1764099059973,-500.0,0.00011506,2]
[394900683,1764099059983,-613.35,0.00011506,2]
[394900684,1764099059993,-500.0,0.00011506,2]
[394900685,1764099060003,-500.0,0.00011506,2]
[394900686,1764099060012,-500.0,0.00011506,2]
[394900687,1764099060023,-500.0,0.00011506,2]
[394900688,1764099060034,-500.0,0.00011506,2]
[394900689,1764099060044,-500.0,0.00011506,2]
[394900690,1764099060055,-500.0,0.00011506,2]
[394900691,1764099060064,-593.73257141,0.00011506,2]
[394900692,1764099060074,-500.0,0.00011506,2]
[394900693,1764099060084,-500.0,0.00011506,2]
[394900694,1764099060095,-500.0,0.00011506,2]
[394900695,1764099060106,-500.0,0.00011506,2]
[394900696,1764099060121,-500.0,0.00011506,2]
[394900697,1764099060132,-500.0,0.00011506,2]
[394900698,1764099060144,-1698.99,0.00011506,2]
[394900699,1764099060155,-500.0,0.00011506,2]
[394900700,1764099060166,-500.0,0.00011506,2]
[394900701,1764099060177,-500.0,0.00011506,2]
[394900702,1764099060190,-387.87948781,0.00011506,2]
[394900703,1764099060203,-500.0,0.00011506,2]
[394900704,1764099060214,-380.94842113,0.00011506,2]
[394900705,1764099060228,-754.51,0.00011506,2]
[394900706,1764099060238,-500.0,0.00011506,2]
[394900707,1764099060249,-1760.11,0.00011506,2]
[394900708,1764099060259,-500.0,0.00011506,2]
[394900709,1764099060270,-500.0,0.00011506,2]
[394900710,1764099060281,-527.04,0.00011506,2]
[394900711,1764099060291,-500.0,0.00011506,2]
[394900712,1764099060301,-500.0,0.00011506,2]
[394900713,1764099060312,-3246.46,0.00011506,2]
[394900714,1764099060322,-500.0,0.00011506,2]
[394900715,1764099060331,-426.11527023,0.00011506,2]
[394900716,1764099060340,-500.0,0.00011506,2]
[394900717,1764099060350,-500.0,0.00011506,2]
[394900718,1764099060360,-500.0,0.00011506,2]
[394900719,1764099060370,-1000.0,0.00011506,2]
[394900720,1764099060380,-1140.97,0.00011506,2]
[394900721,1764099060392,-356.45192997,0.00011506,2]
[394900722,1764099060402,-412.0267929,0.00011506,2]
[394900723,1764099060412,-500.0,0.00011506,2]
[394900724,1764099060422,-1675.45,0.00011506,2]
[394900725,1764099060432,-500.0,0.00011506,2]
[394900726,1764099060442,-500.0,0.00011506,2]
[394900727,1764099060452,-500.92163034,0.00011506,2]
[394900728,1764099060461,-500.0,0.00011506,2]
[394900729,1764099060473,-618.33,0.00011506,2]
[394900730,1764099060483,-1457.17,0.00011506,2]
[394900731,1764099060493,-500.0,0.00011506,2]
[394900732,1764099060503,-712.52,0.00011506,2]
[394900733,1764099060513,-530.53,0.00011506,2]
[394900734,1764099060522,-1339.37,0.00011506,2]
[394900735,1764099060532,-633.08,0.00011506,2]
[394900736,1764099060542,-455.40406455,0.00011506,2]
[394900737,1764099060551,-500.0,0.00011506,2]
[394900738,1764099060561,-305.05271396,0.00011506,2]
[394900739,1764099060573,-8328.75,0.00011506,2]
[394900740,1764099060583,-500.0,0.00011506,2]
[394900741,1764099060593,-500.0,0.00011506,2]
[394900742,1764099060603,-630.98711445,0.00011506,2]
[394900743,1764099060614,-730.49,0.00011506,2]
[394900744,1764099060624,-500.0,0.00011506,2]
[394900745,1764099060635,-891.65,0.00011506,2]
[394900746,1764099060646,-500.0,0.00011506,2]
[394900747,1764099060656,-500.0,0.00011506,2]
[394900748,1764099060666,-500.0,0.00011506,2]
[394900749,1764099060677,-500.0,0.00011506,2]
[394900750,1764099060687,-500.0,0.00011506,2]
[394900751,1764099060697,-500.0,0.00011506,2]
[394900752,1764099060708,-500.0,0.00011506,2]
[394900753,1764099060720,-500.0,0.00011506,2]
[394900754,1764099060731,-1121.47,0.00011506,2]
[394900755,1764099060742,-500.0,0.00011506,2]
[394900756,1764099060752,-724.21,0.00011506,2]
[394900757,1764099060763,-500.0,0.00011506,2]
[394900758,1764099060775,-500.0,0.00011506,2]
[394900759,1764099060786,-500.0,0.00011506,2]
[394900760,1764099060797,-775.69,0.00011506,2]
[394900761,1764099060807,-500.0,0.00011506,2]
[394900762,1764099060818,-2205.5,0.00011506,2]
[394900763,1764099060829,-1088.06,0.00011506,2]
[394900764,1764099060840,-2339.45,0.00011506,2]
[394900765,1764099060850,-517.68,0.00011506,2]
[394900766,1764099060861,-500.0,0.00011506,2]
[394900767,1764099060871,-500.0,0.00011506,2]
[394900768,1764099060882,-1826.55,0.00011506,2]
[394900769,1764099060893,-1943.81,0.00011506,2]
[394900770,1764099060903,-751.94,0.00011506,2]
[394900771,1764099060916,-904.29,0.00011506,2]
[394900772,1764099060927,-774.88,0.00011506,2]
[394900773,1764099060938,-1872.97,0.00011506,2]
[394900774,1764099060950,-615.77,0.00011506,2]
[394900775,1764099060961,-500.0,0.00011506,2]
[394900776,1764099060974,-500.0,0.00011506,2]
[394900777,1764099060984,-500.0,0.00011506,2]
[394900778,1764099060995,-500.0,0.00011506,2]
[394900779,1764099061005,-500.0,0.00011506,2]
[394900780,1764099061015,-530.76,0.00011506,2]
[394900781,1764099061024,-5472.84,0.00011506,2]
[394900782,1764099061036,-500.0,0.00011506,2]
[394900783,1764099061048,-591.77,0.00011506,2]
[394900784,1764099061058,-500.0,0.00011506,2]
[394900785,1764099061067,-1265.76,0.00011506,2]
[394900786,1764099061077,-500.0,0.00011506,2]
[394900787,1764099061087,-500.0,0.00011506,2]
[394900788,1764099061097,-500.0,0.00011506,2]
[394900789,1764099061110,-537.16,0.00011506,2]
[394900790,1764099061120,-2955.61,0.00011506,2]
[394900791,1764099061130,-2185.47,0.00011506,2]
[394900792,1764099061139,-500.0,0.00011506,2]
[394900793,1764099061151,-1746.85,0.00011506,2]
[394900794,1764099061161,-500.0,0.00011506,2]
[394900795,1764099061171,-1639.14,0.00011506,2]
[394900796,1764099061181,-2881.47,0.00011506,2]
[394900797,1764099061193,-500.0,0.00011506,2]
[394900798,1764099061203,-1111.96,0.00011506,2]
[394900799,1764099061212,-2623.36,0.00011506,2]
[394900800,1764099061223,-500.0,0.00011506,2]
[394900801,1764099061233,-500.0,0.00011506,2]
[394900802,1764099061243,-4694.9,0.00011506,2]
[394900803,1764099061253,-500.0,0.00011506,2]
[394900804,1764099061263,-500.0,0.00011506,2]
[394900805,1764099061273,-500.0,0.00011506,2]
[394900806,1764099061283,-500.0,0.00011506,2]
[394900807,1764099061293,-1931.47,0.00011506,2]
[394900808,1764099061303,-2141.71,0.00011506,2]
[394900809,1764099061313,-1477.84,0.00011506,2]
[394900810,1764099061322,-533.77,0.00011506,2]
[394900811,1764099061331,-500.0,0.00011506,2]
[394900812,1764099061341,-582.54611043,0.00011506,2]
[394900813,1764099061362,-500.0,0.00011506,2]
[394900814,1764099061372,-364.11817395,0.00011506,2]
[394900815,1764099061383,-500.0,0.00011506,2]
[394900816,1764099061393,-500.0,0.00011506,2]
[394900817,1764099061403,-3516.57,0.00011506,2]
[394900818,1764099061412,-1823.41,0.00011506,2]
[394900819,1764099061422,-500.0,0.00011506,2]
[394900820,1764099061431,-6281.6,0.00011506,2]
[394900821,1764099061440,-923.25,0.00011506,2]
[394900822,1764099061450,-500.0,0.00011506,2]
[394900823,1764099061460,-374.55,0.00011506,2]
[394900824,1764099061471,-500.0,0.00011506,2]
[394900825,1764099061480,-552.04,0.00011506,2]
[394900826,1764099061489,-500.0,0.00011506,2]
[394900827,1764099061500,-192.74161002,0.00011506,2]
[394900828,1764099061509,-500.0,0.00011506,2]
[394900829,1764099061518,-500.0,0.00011506,2]
[394900830,1764099061528,-2792.1,0.00011506,2]
[394900831,1764099061538,-1332.61,0.00011506,2]
[394900832,1764099061547,-2197.66,0.00011506,2]
[394900833,1764099061557,-500.0,0.00011506,2]
[394900834,1764099061567,-3135.39,0.00011506,2]
[394900835,1764099061576,-659.4,0.00011506,2]
[394900836,1764099061585,-1012.98,0.00011506,2]
[394900837,1764099061595,-1202.03,0.00011506,2]
[394900838,1764099061605,-853.22,0.00011506,2]
[394900839,1764099061614,-1513.66,0.00011506,2]
[394900840,1764099061623,-500.0,0.00011506,2]
[394900841,1764099061633,-529.49,0.00011506,2]
[394900842,1764099061644,-501.36,0.00011506,2]
[394900843,1764099061654,-500.0,0.00011506,2]
[394900844,1764099061663,-500.0,0.00011506,2]
[394900845,1764099061673,-500.0,0.00011506,2]
[394900846,1764099061683,-3068.81,0.00011506,2]
[394900847,1764099061693,-500.0,0.00011506,2]
[394900848,1764099061702,-1124.66,0.00011506,2]
[394900849,1764099061713,-500.0,0.00011506,2]
[394900850,1764099061729,-1462.56,0.00011506,2]
[394900851,1764099061739,-500.0,0.00011506,2]
[394900852,1764099061750,-500.0,0.00011506,2]
[394900853,1764099061761,-2904.67,0.00011506,2]
[394900854,1764099061772,-5465.24,0.00011506,2]
[394900855,1764099061784,-517.38,0.00011506,2]
[394900856,1764099061794,-500.0,0.00011506,2]
[394900857,1764099061804,-595.9,0.00011506,2]
[394900858,1764099061814,-500.0,0.00011506,2]
[394900859,1764099061825,-500.0,0.00011506,2]
[394900860,1764099061836,-507.05,0.00011506,2]
[394900861,1764099061846,-1034.01,0.00011506,2]
[394900862,1764099061856,-2831.69,0.00011506,2]
[394900863,1764099061866,-500.0,0.00011506,2]
[394900864,1764099061877,-500.0,0.00011506,2]
[394900865,1764099061887,-753.73,0.00011506,2]
[394900866,1764099061897,-500.0,0.00011506,2]
[394900867,1764099062032,-500.0,0.00011506,2]
[394900868,1764099062061,-500.0,0.00011506,2]
[394900869,1764099062072,-500.0,0.00011506,2]
[394900870,1764099062084,-500.0,0.00011506,2]
[394900871,1764099062094,-640.24,0.00011506,2]
[394900872,1764099062104,-528.7,0.00011506,2]
[394900873,1764099062114,-500.0,0.00011506,2]
[394900874,1764099062126,-13460.7,0.00011506,2]
[394900875,1764099062135,-540.96048146,0.00011506,2]
[394900876,1764099062144,-1389.23,0.00011506,2]
[394900877,1764099062154,-500.0,0.00011506,2]
[394900878,1764099062164,-500.0,0.00011506,2]
[394900879,1764099062173,-500.0,0.00011506,2]
[394900880,1764099062183,-500.0,0.00011506,2]
[394900881,1764099062193,-500.0,0.00011506,2]
[394900882,1764099062204,-3213.91,0.00011506,2]
[394900883,1764099062214,-592.53,0.00011506,2]
[394900884,1764099062227,-1263.83,0.00011506,2]
[394900885,1764099062236,-488.94173343,0.00011506,2]
[394900886,1764099062246,-3463.96,0.00011506,2]
[394900887,1764099062256,-500.0,0.00011506,2]
[394900888,1764099062266,-500.0,0.00011506,2]
[394900889,1764099062275,-500.0,0.00011506,2]
[394900890,1764099062285,-2311.99,0.00011506,2]
[394900891,1764099062295,-500.0,0.00011506,2]
[394900892,1764099062304,-724.7,0.00011506,2]
[394900893,1764099062314,-500.0,0.00011506,2]
[394900894,1764099062323,-500.0,0.00011506,2]
[394900895,1764099062332,-500.0,0.00011506,2]
[394900896,1764099062342,-1300.95,0.00011506,2]
[394900897,1764099062352,-500.0,0.00011506,2]
[394900898,1764099062361,-1428.46,0.00011506,2]
[394900899,1764099062371,-1021.13693867,0.00011521,2]
[394900900,1764099062380,-1000.0,0.00011521,2]
[394900901,1764099062390,-929.59951479,0.00011521,2]
[394900902,1764099062399,-1000.0,0.00011521,2]
[394900903,1764099062409,-189.02880096,0.00011521,2]
[394900904,1764099062418,-1000.0,0.00011521,2]
[394900905,1764099062427,-1000.0,0.00011524,2]
[394900906,1764099062437,-492.0,0.00011524,2]
[394900907,1764099062446,-948.28433732,0.00011556,2]
[394900908,1764099062455,-187.78006525,0.00011644,2]
[394900909,1764099062464,-1041.08945822,0.00011689,2]
[394900910,1764099062476,-1685.8388219,0.00011734,2]
[394900911,1764099062487,-500.0,0.0001178,2]
[394900912,1764099062497,-500.0,0.0001178,2]
[394900913,1764099062507,-500.0,0.0001178,2]
[394900914,1764099062516,-500.0,0.0001178,2]
[394900915,1764099062526,-500.0,0.0001178,2]
[394900916,1764099062535,-500.0,0.0001178,2]
[394900917,1764099062545,-500.0,0.0001178,2]
[394900918,1764099062554,-791.8,0.0001178,2]
[394900919,1764099062563,-500.0,0.0001178,2]
[394900920,1764099062572,-500.0,0.0001178,2]
[394900921,1764099062581,-500.0,0.0001178,2]
[394900922,1764099062590,-500.0,0.0001178,2]
[394900923,1764099062600,-956.18,0.0001178,2]
[394900924,1764099062609,-500.0,0.0001178,2]
[394900925,1764099062618,-500.0,0.0001178,2]
[394900926,1764099062627,-500.0,0.0001178,2]
[394900927,1764099062636,-500.0,0.0001178,2]
[394900928,1764099062645,-500.0,0.0001178,2]
[394900929,1764099062654,-500.0,0.0001178,2]
[394900930,1764099062663,-500.0,0.0001178,2]
[394900931,1764099062673,-243.71419747,0.0001178,2]
[394900932,1764099062681,-500.0,0.0001178,2]
[394900933,1764099062691,-500.0,0.0001178,2]
[394900934,1764099062699,-1109.54,0.0001178,2]
[394900935,1764099062708,-500.0,0.0001178,2]
[394900936,1764099062720,-625.7,0.0001178,2]
[394900937,1764099062729,-500.0,0.0001178,2]
[394900938,1764099062738,-500.0,0.0001178,2]
[394900939,1764099062747,-557.21962891,0.0001178,2]
[394900940,1764099062756,-519.8,0.0001178,2]
[394900941,1764099062765,-755.22,0.0001178,2]
[394900942,1764099062775,-500.0,0.0001178,2]
[394900943,1764099062784,-500.0,0.0001178,2]
[394900944,1764099062793,-500.0,0.0001178,2]
[394900945,1764099062803,-551.63,0.0001178,2]
[394900946,1764099062812,-500.0,0.0001178,2]
[394900947,1764099062821,-879.57,0.0001178,2]
[394900948,1764099062831,-500.0,0.0001178,2]
[394900949,1764099062840,-610.82629842,0.0001178,2]
[394900950,1764099062849,-500.0,0.0001178,2]
[394900951,1764099062858,-807.9,0.0001178,2]
[394900952,1764099062867,-500.0,0.0001178,2]
[394900953,1764099062876,-1197.75,0.0001178,2]
[394900954,1764099062885,-500.0,0.0001178,2]
[394900955,1764099062894,-500.0,0.0001178,2]
[394900956,1764099062903,-500.0,0.0001178,2]
[394900957,1764099062912,-1399.99,0.0001178,2]
[394900958,1764099062922,-500.0,0.0001178,2]
[394900959,1764099062931,-500.0,0.0001178,2]
[394900960,1764099062940,-500.0,0.0001178,2]
[394900961,1764099062949,-514.12,0.0001178,2]
[394900962,1764099062959,-516.17,0.0001178,2]
[394900963,1764099062969,-500.0,0.0001178,2]
[394900964,1764099062979,-500.0,0.0001178,2]
[394900965,1764099062988,-500.0,0.0001178,2]
[394900966,1764099062997,-569.59,0.0001178,2]
[394900967,1764099063007,-2710.36,0.0001178,2]
[394900968,1764099063016,-635.52,0.0001178,2]
[394900969,1764099063025,-500.0,0.0001178,2]
[394900970,1764099063035,-500.0,0.0001178,2]
[394900971,1764099063044,-1310.34,0.0001178,2]
[394900972,1764099063053,-500.0,0.0001178,2]
[394900973,1764099063062,-717.97,0.0001178,2]
[394900974,1764099063071,-500.0,0.0001178,2]
[394900975,1764099063080,-500.0,0.0001178,2]
[394900976,1764099063089,-627.87,0.0001178,2]
[394900977,1764099063098,-500.0,0.0001178,2]
[394900978,1764099063109,-500.0,0.0001178,2]
[394900979,1764099063120,-500.0,0.0001178,2]
[394900980,1764099063129,-500.0,0.0001178,2]